[Event "Czech Open-GM 2022"]
[Site "Pardubice"]
[Date "2022.07.28"]
[Round "7.2"]
[White "Stachowiak, Kamil"]
[Black "Stocek, Jiri"]
[Result "1/2-1/2"]
[ECO "D24"]
[WhiteElo "2476"]
[BlackElo "2548"]
[Annotator "TA"]
[PlyCount "71"]
[EventDate "2022.07.22"]
[EventType "swiss"]
[EventCountry "CZE"]
[SourceTitle "playchess.com"]
[Source "ChessBase"]
[SourceQuality "1"]
[TimeControl "40/5400+30:1800+30"]

{[%evp 10,71,-31,-47,-51,-55,-50,-46,-43,-45,-48,-36,-38,-51,-49,-76,-62,-74,-33,-41,-41,-27,-11,-7,12,14,16,16,30,37,56,65,122,78,127,78,77,75,61,72,69,72,54,0,0,0,0,0,0,0,0,0,0,0,0,0,0,0,0,0,0,0,0,0]} 1. d4 {[%emt 0:00:02]} Nf6 {[%emt 0:00:21]} 2. Nf3 {[%emt 0:00:14]} d5 {[%emt 0:03:02]} 3. c4 {[%emt 0:00:42]} dxc4 {[%emt 0:00:11]} 4. Nc3 {[%emt 0:00:22]} a6 {[%emt 0:01:06]} 5. a4 {[%emt 0:03:57]} Nc6 {[%emt 0:03:00]} 6. Bg5 {[%emt 0:18:13][%cal Bc1g5,Bg5h4,Bh4g3,Bg3c7,Bc7b6][%mdl 32]} h6 {[%emt 0:06:21] D24: Queen's Gambit Accepted: 3 Nf3 Nf6 4 Nc3.} 7. Bh4 {[%emt 0:03:41]} g5 {[%emt 0:19:21]} 8. Bg3 {[%emt 0:00:07]} g4 {[%emt 0:01:10] Black is slightly better.} 9. Ne5 {[%emt 0:01:32]} Qxd4 {[%emt 0:02:53] And now ...Qc5 would win.} ({But not} 9... Nxd4 10. e3 Nc6 11. Nxc6 (11. Nxc4 Be6 $15) (11. Bxc4 Qxd1+ 12. Rxd1 Nxe5 $11) 11... Qxd1+ 12. Rxd1 bxc6 13. Bxc4 $14) 10. Nxc6 {[%emt 0:00:31]} Qxd1+ {[%emt 0:00:05]} 11. Rxd1 {[%emt 0:00:05][%csl Gc6][%cal Rd1d8] [#]} bxc6 {[%emt 0:00:05]} 12. e4 {[%emt 0:03:53]} Be6 {[%emt 0:02:40]} 13. Bxc7 {[%emt 0:02:08]} Bg7 {[%emt 0:01:23] [#]} 14. f4 $146 ({Predecessor:} 14. Be2 O-O 15. O-O Nd7 16. f4 gxf3 17. Rxf3 Ra7 18. Bf4 Rb7 19. Rg3 Kh7 20. Rd2 {0-1 (38) Weissenbeck,M (2300)-Brod,M (2212) Austria 2012}) 14... gxf3 $1 {[%emt 0:03:20]} 15. gxf3 {[%emt 0:01:22]} Nh5 {[%emt 0:06:04]} 16. a5 {[%emt 0:18:07]} Rc8 {[%emt 0:07:48]} 17. Bb6 {[%emt 0:00:51]} Bxc3+ {[%emt 0:10:38]} 18. bxc3 {[%emt 0:00:05]} c5 {[%emt 0:00:02]} 19. Rg1 {[%emt 0:12:42]} Nf6 {[%emt 0:02:18]} 20. Kf2 {[%emt 0:03:41]} Rg8 {[%emt 0:03:26]} (20... Nd7 $14) 21. Rxg8+ $16 {[%emt 0:03:10]} Nxg8 {[%emt 0:00:04]} 22. Ke3 {[%emt 0:05:23] White is more active.} ({White should try} 22. e5) 22... Nf6 {[%emt 0:01:52]} 23. Be2 {[%emt 0:01:50]} Nd7 {[%emt 0:09:39]} 24. f4 {[%emt 0:00:26] [#] aiming for f5.} Nxb6 {[%emt 0:00:30]} 25. axb6 {[%emt 0:00:04][%mdl 4096] Endgame KRB-KRB} Rb8 {[%emt 0:00:11]} 26. f5 {[%emt 0:00:38]} (26. Rg1 $14 f6 27. f5) 26... Bd7 $11 {[%emt 0:00:59] The position is equal.} 27. Bxc4 {[%emt 0:01:25]} Bb5 $1 {[%emt 0:02:44]} 28. Bxb5+ {[%emt 0:00:37]} axb5 {[%emt 0:00:05] KR-KR} 29. Rd5 {[%emt 0:00:16]} Rxb6 {[%emt 0:00:16]} 30. Rxc5 {[%emt 0:00:06]} b4 {[%emt 0:00:12]} 31. cxb4 {[%emt 0:00:17]} Rxb4 {[%emt 0:00:05]} 32. h4 {[%emt 0:02:48]} f6 {[%emt 0:01:58]} 33. Rc8+ {[%emt 0:00:35]} Kf7 {[%emt 0:00:05]} 34. Rh8 {[%emt 0:00:13]} Kg7 {[%emt 0:00:15]} 35. Re8 {[%emt 0:00:05]} Kf7 {[%emt 0:00:07]} 36. Rh8 {[%emt 0:00:05] Weighted Error Value: White=0.06 (flawless) /Black=0.06 (flawless)} 1/2-1/2

[Event "Czech Open-GM 2022"]
[Site "Pardubice"]
[Date "2022.07.28"]
[Round "7.3"]
[White "Harsha Bharathakoti"]
[Black "Brodowski, Piotr"]
[Result "1/2-1/2"]
[ECO "B34"]
[WhiteElo "2547"]
[BlackElo "2450"]
[Annotator "TA"]
[PlyCount "80"]
[EventDate "2022.07.22"]
[EventType "swiss"]
[EventCountry "CZE"]
[SourceTitle "playchess.com"]
[Source "ChessBase"]
[SourceQuality "1"]
[TimeControl "40/5400+30:1800+30"]

{[%evp 22,80,39,16,23,18,29,20,62,60,76,24,47,0,0,-69,-33,-78,-52,-118,-109,-114,-114,-122,-110,-152,-151,-143,-107,-101,-103,-95,-80,-133,-134,-134,-124,-125,-129,-129,-118,-120,-55,-55,-27,-16,-18,-29,-28,-20,0,0,0,0,0,0,0,0,0,0,0]} 1. e4 {[%emt 0:04:01]} c5 {[%emt 0:00:12]} 2. Nf3 {[%emt 0:00:10]} Nc6 {[%emt 0:00:05]} 3. d4 {[%emt 0:00:05]} cxd4 {[%emt 0:00:14]} 4. Nxd4 {[%emt 0:00:19]} Nf6 {[%emt 0:00:04]} 5. Nc3 {[%emt 0:00:11]} e5 {[%emt 0:00:05]} 6. Ndb5 {[%emt 0:00:04]} d6 {[%emt 0:00:05]} 7. Nd5 {[%emt 0:00:04]} Nxd5 {[%emt 0:00:06]} 8. exd5 {[%emt 0:00:04]} Ne7 {[%emt 0:00:10]} 9. c4 {[%emt 0:00:05]} Ng6 {[%emt 0:00:09]} 10. Qa4 {[%emt 0:00:03]} Bd7 {[%emt 0:00:10]} 11. Qb4 {[%emt 0:00:04]} Qb8 {[%emt 0:00:13]} 12. Be3 {[%emt 0:11:48] Threatens to win with Qa5.} (12. h4 $5 {[%cal Rh4h5]}) 12... a6 {[%emt 0:02:03] B33: Sicilian: Pelikan and Sveshnikov Variations.} 13. Nc3 {[%emt 0:00:15]} a5 {[%emt 0:00:07]} 14. Qa3 {[%emt 0:03:27]} f5 {[%emt 0:16:00] [#]} 15. h4 $146 {[%emt 0:09:34] White is more active.} ({Predecessor:} 15. f3 Be7 16. O-O-O O-O 17. Kb1 Qc7 18. Nb5 Bxb5 19. cxb5 Bf6 20. b6 Qe7 21. Rc1 {½-½ (44) Marcinczyk,M (1865)-Wikar,M (2160) Sypniewo 2022}) 15... f4 {[%emt 0:07:14]} 16. Bd2 {[%emt 0:08:49]} (16. Bb6 $16) 16... Be7 {[%emt 0:00:55]} 17. h5 {[%emt 0:35:43]} (17. g3 $14 {feels stronger.}) 17... Nh4 $11 {[%emt 0:01:32]} 18. Na4 {[%emt 0:00:45]} (18. O-O-O $11) 18... b6 {[%emt 0:18:16]} 19. Qb3 {[%emt 0:01:25]} Qd8 {[%emt 0:00:36]} 20. Bc3 {[%emt 0:05:43]} ({Don't go for} 20. Nxb6 $2 a4 21. Nxa4 (21. Qb4 $2 Rb8 $19) 21... Bxa4 $19) (20. h6 $15) 20... Rb8 {[%emt 0:03:59]} 21. O-O-O {[%emt 0:03:40]} O-O {[%emt 0:00:22]} 22. Bd3 {[%emt 0:05:44]} Nxg2 {[%emt 0:19:11]} 23. Qc2 {[%emt 0:03:38]} h6 {[%emt 0:00:08]} 24. Bd2 {[%emt 0:00:20]} f3 {[%emt 0:12:36]} 25. Nc3 {[%emt 0:00:19]} Kh8 {[%emt 0:00:25]} 26. Kb1 {[%emt 0:02:44]} Rc8 {[%emt 0:02:51]} 27. Qb3 {[%emt 0:01:52]} (27. a4 $142) 27... Nf4 $17 {[%emt 0:00:51]} 28. Bxf4 {[%emt 0:00:40]} Rxf4 {[%emt 0:00:04]} 29. Ne4 {[%emt 0:00:14]} Bf5 {[%emt 0:00:17]} 30. Rde1 {[%emt 0:00:24]} Qc7 {[%emt 0:02:12]} 31. Re3 {[%emt 0:01:19]} Bxe4 {[%emt 0:01:45]} (31... Rf8 $17 32. Qc2 Bh4) 32. Rxe4 $15 {[%emt 0:00:04]} Rxe4 {[%emt 0:00:11]} 33. Bxe4 {[%emt 0:00:03]} Qxc4 {[%emt 0:00:12]} 34. Qxf3 {[%emt 0:00:17]} Rf8 {[%emt 0:00:51]} 35. Qg2 {[%emt 0:00:20]} Rxf2 {[%emt 0:07:43] The position is equal.} 36. Qg6 {[%emt 0:00:06][%csl Ge4][%cal Rg6h7] [#]} Rf1+ {[%emt 0:00:04]} 37. Rxf1 {[%emt 0:00:02] The board is on fire.} Qxf1+ {[%emt 0:00:06]} 38. Kc2 {[%emt 0:00:03][%csl Ge4][%cal Rg6h7]} Qc4+ {[%emt 0:01:07]} 39. Kb1 {[%emt 0:00:27][%csl Ge4][%cal Rg6h7]} Qf1+ {[%emt 0:00:24]} 40. Kc2 {[%emt 0:00:04][%csl Ge4][%cal Rg6h7] [#]} Qc4+ {[%emt 0:00:26] Black had all chances to win.  Weighted Error Value: White=0.18 (very precise) /Black=0.14 (very precise)} 1/2-1/2

[Event "Czech Open-GM 2022"]
[Site "Pardubice"]
[Date "2022.07.28"]
[Round "7.4"]
[White "Stalmach, Richard"]
[Black "Noe, Christopher"]
[Result "1/2-1/2"]
[ECO "E38"]
[WhiteElo "2363"]
[BlackElo "2505"]
[Annotator "TA"]
[PlyCount "33"]
[EventDate "2022.07.22"]
[EventType "swiss"]
[EventCountry "CZE"]
[SourceTitle "playchess.com"]
[Source "ChessBase"]
[SourceQuality "1"]
[TimeControl "40/5400+30:1800+30"]

{[%evp 14,33,6,-6,25,26,29,16,18,18,17,16,28,14,47,39,39,32,32,41,52,47]} 1. d4 {[%emt 0:02:12]} Nf6 {[%emt 0:00:10]} 2. c4 {[%emt 0:00:07]} e6 {[%emt 0:00:06]} 3. Nc3 {[%emt 0:00:04]} Bb4 {[%emt 0:00:47]} 4. Qc2 {[%emt 0:00:08]} c5 {[%emt 0:10:39]} 5. dxc5 {[%emt 0:00:20]} Na6 {[%emt 0:00:37]} 6. Bd2 {[%emt 0:03:28]} Nxc5 {[%emt 0:02:49]} 7. Nf3 {[%emt 0:00:47][%cal Bg1f3,Bf3d4,Bd4b5,Bb5d6][%mdl 32]} O-O {[%emt 0:05:08]} 8. g3 {[%emt 0:04:26]} Bxc3 {[%emt 0:11:21] E39: Nimzo-Indian: Classical: 4...c5 5 dxc5 0-0.} 9. Bxc3 {[%emt 0:00:19]} Nce4 {[%emt 0:00:06] Inhibits Ng5.} 10. Bg2 {[%emt 0:02:49]} Nxc3 {[%emt 0:14:52] The position is equal.} 11. Qxc3 {[%emt 0:00:07]} b6 {[%emt 0:00:56]} 12. Nd4 {[%emt 0:05:11]} Rb8 {[%emt 0:00:20][%cal Ba8b8,Bb8b7,Bb7c7][%mdl 32] [#]} 13. Nb5 $146 {[%emt 0:10:12]} ({Predecessor:} 13. O-O Bb7 14. Qa3 Bxg2 15. Kxg2 Qc7 16. Rac1 Qc5 17. Qd3 {½-½ (17) Ponkratov,P (2644)-Fedorchuk,S (2621) Mali Losinj 2019}) 13... Bb7 {[%emt 0:00:51]} 14. Bxb7 {[%emt 0:00:36] White is slightly better.} Rxb7 {[%emt 0:00:06]} 15. Nd6 {[%emt 0:03:22]} Rc7 {[%emt 0:00:46]} 16. O-O {[%emt 0:01:43]} Qa8 {[%emt 0:04:17]} 17. Qd3 {[%emt 0:06:08] Prevents Ne4.  Weighted Error Value: White=0.04 (flawless) /Black=0.10 (very precise)} 1/2-1/2

[Event "Czech Open-GM 2022"]
[Site "Pardubice"]
[Date "2022.07.28"]
[Round "7.5"]
[White "Bronstein, Or"]
[Black "Gnojek, Petr"]
[Result "1-0"]
[ECO "B81"]
[WhiteElo "2476"]
[BlackElo "2295"]
[Annotator "TA"]
[PlyCount "41"]
[EventDate "2022.07.22"]
[EventType "swiss"]
[EventCountry "CZE"]
[SourceTitle "playchess.com"]
[Source "ChessBase"]
[SourceQuality "1"]
[TimeControl "40/5400+30:1800+30"]

{[%evp 12,41,60,39,82,89,87,86,104,85,85,103,117,84,302,285,406,399,1175,1164,1243,934,1102,1110,957,958,932,910,29991,29992,29992,29993]} 1. e4 {[%emt 0:00:08]} c5 {[%emt 0:00:18]} 2. Nf3 {[%emt 0:00:07]} d6 {[%emt 0:00:08]} 3. d4 {[%emt 0:00:18]} cxd4 {[%emt 0:00:06]} 4. Nxd4 {[%emt 0:00:01]} Nf6 {[%emt 0:00:11]} 5. Nc3 {[%emt 0:00:03]} e6 {[%emt 0:00:06]} 6. g4 {[%emt 0:00:08]} h6 {[%emt 0:00:08]} 7. Rg1 {[%emt 0:00:06]} g5 {[%emt 0:03:47] B81: Sicilian Scheveningen: Keres Attack.} 8. h4 {[%emt 0:00:59]} gxh4 {[%emt 0:00:11]} 9. g5 {[%emt 0:00:09]} hxg5 {[%emt 0:00:06] White is better.} 10. Bxg5 {[%emt 0:00:02][%cal Oe4e5] Black must now prevent e5!} Be7 {[%emt 0:14:38] [#]} 11. Qd3 $146 {[%emt 0:01:06]} ({Predecessor:} 11. Qe2 a6 12. O-O-O Nbd7 13. f4 Nh5 14. Qf3 Ng3 15. Bxe7 Qxe7 16. Bh3 Nb6 17. Nde2 Nxe2+ 18. Nxe2 {1-0 (32) Hausner,I (2407)-Ftacnik,L (2570) Slovakia 2011}) 11... a6 {[%emt 0:04:54] Inhibits Ndb5.} 12. O-O-O {[%emt 0:05:07] 0x0.001e3b197166dp-1022s more active pieces.} Bd7 $2 {[%emt 0:05:23] [#]} (12... e5 $16 {was worth a try.}) 13. e5 $1 $18 {[%emt 0:15:23]} dxe5 {[%emt 0:00:09] [#]} (13... Ng4 {was called for.} 14. Bxe7 (14. Rxg4 Bxg5+ 15. f4 Be7 $18) 14... Nxe5 15. Bxd8 Nxd3+ 16. Rxd3 (16. Bxd3 Kxd8 17. Rg7 Ke7 $18) 16... Kxd8) 14. Nxe6 $1 {[%emt 0:00:17][%mdl 64] Pin} Qa5 {[%emt 0:06:15]} (14... fxe6 {gets mated.} 15. Qg6+ Kf8 16. Bh6+ Rxh6 17. Qxh6+ Ke8 18. Qg6+ Kf8 19. Ne4) (14... Bxe6 15. Qxd8+ Bxd8) 15. Bxf6 {[%emt 0:11:21]} Bxf6 {[%emt 0:00:15]} 16. Nd5 {[%emt 0:00:06]} Bxe6 {[%emt 0:01:18]} 17. Nxf6+ {[%emt 0:00:05]} Ke7 {[%emt 0:00:02]} 18. Ng8+ {[%emt 0:00:40]} (18. Qf3 Nc6 19. Bc4 (19. Ne4 Rh6 $11) 19... Nd4 20. Rxd4 exd4 $11) 18... Rxg8 {[%emt 0:06:56]} 19. Rxg8 {[%emt 0:01:48] Qd6+ is the strong threat.} Qc7 {[%emt 0:01:39] Against Qd6+} 20. Qa3+ {[%emt 0:02:22]} Kf6 {[%emt 0:00:08]} 21. Qe3 {[%emt 0:00:06] Black got outplayed after the opening.  Weighted Error Value: White=0.03 (flawless) /Black=1.08} 1-0

[Event "Czech Open-GM 2022"]
[Site "Pardubice"]
[Date "2022.07.28"]
[Round "7.6"]
[White "Simek, Petr"]
[Black "Pantzar, Milton"]
[Result "1-0"]
[ECO "D30"]
[WhiteElo "2348"]
[BlackElo "2447"]
[Annotator "TA"]
[PlyCount "139"]
[EventDate "2022.07.22"]
[EventType "swiss"]
[EventCountry "CZE"]
[SourceTitle "playchess.com"]
[Source "ChessBase"]
[SourceQuality "1"]
[TimeControl "40/5400+30:1800+30"]

{[%evp 16,139,35,31,25,29,35,13,46,41,40,43,46,54,107,116,97,69,130,136,136,126,177,194,205,171,142,93,197,197,162,96,151,154,182,120,120,156,298,53,76,64,99,96,92,89,90,93,94,66,66,66,66,66,72,27,77,75,68,68,75,43,43,43,43,43,27,27,27,27,27,0,3003,793,4243,2708,1227,117,117,8,2065,1832,319,319,319,319,319,319,319,8,2298,2195,5827,5382,4602,8,8,8,2350,0,0,0,3070,1546,1185,1108,967,920,770,730,3683,1363,29961,29962,29960,29964,29963,29965,29963,29967,29966,29967,29962,29961,29977,29977]} 1. d4 {[%emt 0:04:45]} d5 {[%emt 0:00:20]} 2. c4 {[%emt 0:00:06]} e6 {[%emt 0:00:07]} 3. Nf3 {[%emt 0:00:08]} Nf6 {[%emt 0:00:13]} 4. g3 {[%emt 0:00:09]} c5 {[%emt 0:01:46]} 5. cxd5 {[%emt 0:00:11]} exd5 {[%emt 0:00:12]} 6. Bg2 {[%emt 0:00:08]} Nc6 {[%emt 0:00:21]} 7. O-O {[%emt 0:00:08]} Be7 {[%emt 0:00:11]} 8. dxc5 {[%emt 0:00:10]} Bxc5 {[%emt 0:00:10]} 9. a3 {[%emt 0:00:08]} Ne4 {[%emt 0:01:09] D30: Queen's Gambit Declined: Systems without Nc3.} 10. Nfd2 {[%emt 0:00:11]} f5 {[%emt 0:03:57]} 11. Nxe4 {[%emt 0:00:10] [#]} fxe4 $146 {[%emt 0:16:35] The position is equal.} ({Predecessor:} 11... dxe4 12. Qxd8+ Nxd8 13. Nc3 Be6 14. Bf4 Nf7 15. Rac1 Rc8 16. Na4 Bd6 17. f3 exf3 18. Bxf3 {½-½ (65) Buhmann,R (2612)-Krassowizkij,J (2429) Germany 2015}) 12. b4 {[%emt 0:01:57]} Bb6 {[%emt 0:01:42]} 13. Nc3 {[%emt 0:00:07]} Be6 {[%emt 0:04:17]} 14. Na4 {[%emt 0:00:18]} h5 {[%emt 0:16:51]} (14... O-O $14) 15. Nxb6 $16 {[%emt 0:07:54]} Qxb6 {[%emt 0:01:02]} 16. Bg5 {[%emt 0:03:45]} Ne5 {[%emt 0:09:34]} (16... O-O $14) 17. Be3 $1 {[%emt 0:07:12]} Qd8 {[%emt 0:02:19]} 18. Bd4 {[%emt 0:05:51]} Nc6 {[%emt 0:05:22]} (18... Nc4 $16 {might work better.}) 19. Bxg7 $18 {[%emt 0:13:26]} Rh7 {[%emt 0:00:50]} 20. Bd4 {[%emt 0:07:30]} h4 {[%emt 0:01:25]} 21. b5 {[%emt 0:02:40]} (21. Be3 $142) 21... Ne7 {[%emt 0:05:15]} (21... Nxd4 $16 22. Qxd4 hxg3) 22. Bf6 {[%emt 0:23:04] This bishop pair is nice.} Qd7 {[%emt 0:04:08]} 23. Bxe7 {[%emt 0:00:05]} ({But not} 23. Bxh4 $6 Ng6 $14) (23. Rc1 $18) 23... Kxe7 {[%emt 0:03:14]} (23... Qxe7 $142 24. Qd4 Qg7 25. Qxg7 Rxg7) 24. Qd4 $16 {[%emt 0:00:05]} Qd6 {[%emt 0:06:47]} 25. Rfd1 {[%emt 0:04:04]} ({White should play} 25. Rad1 $18 {[%cal Og2e4] Strongly threatening Bxe4!} Qc7 26. Rc1 (26. Bxe4 dxe4 27. Qxe4 Rh5 $14)) 25... hxg3 {[%emt 0:02:42]} 26. hxg3 {[%emt 0:00:20][%cal Og2e4]} Rg8 {[%emt 0:02:24]} (26... Qb6 $16) 27. Qb4 $2 {[%emt 0:09:27]} ({Worse is} 27. Bxe4 Rh4 28. Qxa7 Rxe4 29. Qxb7+ Kf6 $17) (27. Qxa7 $18 Qb8 28. Qb6) 27... e3 {[%emt 0:02:10]} 28. Rd4 {[%emt 0:01:59]} Rhg7 {[%emt 0:02:19]} 29. Bxd5 {[%emt 0:01:39]} Bxd5 {[%emt 0:02:47]} 30. Rxd5 {[%emt 0:00:05][%mdl 64] Pin} exf2+ {[%emt 0:00:07]} 31. Kxf2 {[%emt 0:00:12] The board is on fire.} Rf7+ {[%emt 0:00:40]} 32. Ke1 {[%emt 0:00:10]} Qxb4+ {[%emt 0:00:08]} 33. axb4 {[%emt 0:00:04]} Rxg3 {[%emt 0:01:28] ...Rg1+ is the strong threat.} 34. Rxa7 $14 {[%emt 0:00:34][%mdl 4096] Endgame KRR-KRR} Ke6 {[%emt 0:00:38]} 35. Rd8 {[%emt 0:02:21]} Rg5 {[%emt 0:01:19]} (35... Rg4 $11 {remains equal.}) 36. Ra3 $16 {[%emt 0:00:27]} Rxb5 {[%emt 0:01:22]} 37. Re3+ {[%emt 0:00:07]} Kf5 {[%emt 0:01:38]} 38. Rf3+ {[%emt 0:00:24]} Ke6 {[%emt 0:00:09]} 39. Rxf7 {[%emt 0:01:33]} Kxf7 $14 {[%emt 0:00:08] KR-KR} 40. Rd4 {[%emt 0:00:02]} Ke6 {[%emt 0:01:09]} 41. Kd2 {[%emt 0:30:41]} Rh5 {[%emt 0:03:21]} 42. Kd3 {[%emt 0:00:00]} b5 {[%emt 0:07:10]} 43. Rd8 {[%emt 0:00:00]} Ke7 $2 {[%emt 0:04:45][%mdl 8192]} (43... Rd5+ $11 44. Rxd5 Kxd5 45. e4+ Ke5 46. Ke3 Ke6 47. Kd4 Kd6 48. e5+ Ke6) 44. Rb8 $18 {[%emt 0:00:00]} Kd6 {[%emt 0:02:08]} 45. e4 {[%emt 0:00:00]} Kc7 {[%emt 0:00:52]} 46. Rf8 $2 {[%emt 0:00:00]} (46. Rg8 $18 Rh1 47. Rg5) 46... Rh1 $16 {[%emt 0:06:11]} 47. Rf5 {[%emt 0:00:00]} ({Only move:} 47. Kd4 $1 $16) 47... Rd1+ $2 {[%emt 0:01:39][%mdl 8192]} (47... Kc6 $11) 48. Ke3 $1 $18 {[%emt 0:00:00]} Kc6 {[%emt 0:01:18]} 49. Rc5+ {[%emt 0:00:00]} Kb6 {[%emt 0:00:09]} 50. Rd5 $1 {[%emt 0:00:00]} Re1+ {[%emt 0:01:59]} 51. Kf4 {[%emt 0:00:00] And now e5 would win.} Kc6 {[%emt 0:02:13]} 52. Rd4 $2 {[%emt 0:00:00]} (52. Rc5+ $18 Kb6 53. Rd5) 52... Rf1+ $2 {[%emt 0:00:58][%mdl 8192]} (52... Rh1 $11) 53. Ke3 $1 {[%emt 0:00:00] White threatens e5 and mate.} Rh1 {[%emt 0:00:25]} 54. e5 $1 {[%emt 0:00:00] Kf3 would kill now.} Rh3+ {[%emt 0:00:25]} 55. Ke4 $2 {[%emt 0:00:00]} (55. Ke2 $18 {Threatens to win with Rd6+.} Rh5 56. Rd6+ Kc7 57. Rd5) 55... Rh4+ $1 $11 {[%emt 0:00:07]} 56. Kd3 {[%emt 0:00:00]} Rh3+ {[%emt 0:00:21][%mdl 8192] [#]} (56... Rh6 $11) 57. Kd2 $2 {[%emt 0:00:00]} (57. Ke2 $1 $18 {Hoping for Rd6+.} Rh5 58. Rd6+ Kc7 59. Rd5) 57... Rh2+ {[%emt 0:00:17]} 58. Ke3 $2 {[%emt 0:00:00][%mdl 8192]} (58. Kd1 $11) 58... Rh3+ $18 {[%emt 0:00:11]} 59. Kf2 {[%emt 0:00:00]} Kc7 {[%emt 0:04:46]} 60. Rd5 {[%emt 0:00:00]} Kc6 {[%emt 0:01:45]} 61. Rc5+ {[%emt 0:00:00]} Kd7 {[%emt 0:00:27]} 62. Rxb5 {[%emt 0:00:00]} Rb3 {[%emt 0:00:35] [#]} 63. Ke2 $1 {[%emt 0:00:00] Black must now prevent Kd2.} Kc6 {[%emt 0:00:17]} 64. Rc5+ {[%emt 0:00:00] White mates.} Kd7 {[%emt 0:00:04]} 65. b5 {[%emt 0:00:00]} Ke6 {[%emt 0:00:10]} 66. Kd2 {[%emt 0:00:00]} Kf5 {[%emt 0:01:22]} 67. Kc2 {[%emt 0:00:00]} Rb4 {[%emt 0:00:12]} 68. Kc3 {[%emt 0:00:00]} Rb1 {[%emt 0:00:05]} 69. Kd4 {[%emt 0:00:00]} Re1 {[%emt 0:00:59]} 70. Kd5 {[%emt 0:00:00] Weighted Error Value: White=0.78/Black=0.18 (very precise)} 1-0

[Event "Czech Open-GM 2022"]
[Site "Pardubice"]
[Date "2022.07.28"]
[Round "7.7"]
[White "Dobrowolski, Piotr"]
[Black "Sarkar, Justin"]
[Result "1/2-1/2"]
[ECO "B92"]
[WhiteElo "2423"]
[BlackElo "2346"]
[Annotator "TA"]
[PlyCount "97"]
[EventDate "2022.07.22"]
[EventType "swiss"]
[EventCountry "CZE"]
[SourceTitle "playchess.com"]
[Source "ChessBase"]
[SourceQuality "1"]
[TimeControl "40/5400+30:1800+30"]

{[%evp 17,97,0,4,11,9,0,0,0,0,0,0,0,0,4,8,-7,-11,-46,-42,-37,-45,-75,-58,-59,-57,-125,-132,-135,-134,-136,-131,-134,-115,-125,-115,-116,-122,-125,-103,-121,-106,-126,-107,-146,-100,-113,-124,-188,-193,-186,-180,-165,-121,-121,-15,-16,0,0,0,0,0,0,0,0,0,0,0,0,0,0,0,0,0,0,0,0,0,0,0,0,0,0]} 1. e4 {[%emt 0:00:04]} c5 2. Nf3 {[%emt 0:00:30]} d6 {[%emt 0:01:00]} 3. d4 {[%emt 0:00:27]} cxd4 {[%emt 0:00:23]} 4. Nxd4 {[%emt 0:00:11]} Nf6 {[%emt 0:00:08]} 5. Nc3 {[%emt 0:00:10]} a6 {[%emt 0:00:57]} 6. Be2 {[%emt 0:00:48]} e5 {[%emt 0:01:03]} 7. Nb3 {[%emt 0:00:20]} Be7 {[%emt 0:00:19]} 8. O-O {[%emt 0:01:53]} O-O {[%emt 0:02:12]} 9. Qd3 {[%emt 0:02:00]} Be6 {[%emt 0:02:22]} 10. Bd2 {[%emt 0:04:27] B92: Sicilian Najdorf: 6 Be2.} Nc6 {[%emt 0:05:33]} 11. Nd5 {[%emt 0:09:09] Against Nb4} a5 {[%emt 0:00:22]} 12. a4 {[%emt 0:06:08]} Bxd5 {[%emt 0:00:42]} 13. exd5 {[%emt 0:00:08]} Nb4 {[%emt 0:00:10]} 14. Bxb4 {[%emt 0:00:25]} axb4 {[%emt 0:00:05]} 15. a5 {[%emt 0:05:52]} Qd7 $1 {[%emt 0:22:11] [#] Against Ra4} 16. Qd2 $146 {[%emt 0:34:02]} ({Predecessor:} 16. Nd2 Rfc8 17. Nc4 Bd8 18. Rfd1 Rc5 19. Qb3 Rac8 20. a6 bxa6 21. Rxa6 Qb5 22. Rxd6 {1-0 (30) Vachier Lagrave,M (2749)-Nepomniachtchi,I (2792) Zagreb 2021}) 16... Rfc8 {[%emt 0:01:04]} 17. a6 {[%emt 0:09:47]} bxa6 {[%emt 0:04:08]} 18. Bxa6 {[%emt 0:00:03]} Rcb8 {[%emt 0:01:34]} 19. Bc4 {[%emt 0:01:30]} Rxa1 $1 {[%emt 0:01:40]} 20. Rxa1 {[%emt 0:01:22]} Bd8 {[%emt 0:00:07]} 21. Na5 {[%emt 0:11:09]} ({White should play} 21. Kh1 $15) 21... Bxa5 $17 {[%emt 0:03:54]} 22. Rxa5 {[%emt 0:00:02]} Qc7 {[%emt 0:00:10][%csl LRa5,LRc4]} 23. Rb5 {[%emt 0:00:56]} Rxb5 {[%emt 0:00:46]} 24. Bxb5 {[%emt 0:00:02][%mdl 4096] Endgame KQB-KQN} Qa5 {[%emt 0:00:11]} 25. Bf1 {[%emt 0:01:11]} Qc5 {[%emt 0:01:13]} (25... Qxd5 $6 26. Qxb4 g6 27. Qc3 $11) (25... Nxd5 $6 26. Bc4 Nf4 27. g3 $11) 26. g3 {[%emt 0:01:05]} Nxd5 {[%emt 0:01:06]} 27. Bg2 {[%emt 0:00:21]} Nb6 {[%emt 0:00:38]} 28. Qg5 {[%emt 0:01:26][%cal Rg5d8]} g6 $1 {[%emt 0:11:18]} 29. h4 {[%emt 0:01:33]} Kg7 $1 {[%emt 0:00:59]} 30. Qe7 {[%emt 0:03:18][%cal Oh4h5]} h5 {[%emt 0:04:43]} (30... Qxc2 $6 31. Qxd6 Nc4 32. Qc5 $11) (30... Nd5 $142 $1 {[%cal Rd5e7]} 31. Qb7 Nf6) 31. Qb7 {[%emt 0:02:13] [#]} d5 $1 {[%emt 0:03:35]} 32. Qb8 {[%emt 0:01:13]} (32. b3 $17) 32... Nd7 $19 {[%emt 0:00:47]} 33. Qe8 {[%emt 0:00:03]} Qd6 {[%emt 0:00:42]} 34. Qd8 {[%emt 0:00:05]} e4 {[%emt 0:03:33][%cal Ob4b3]} 35. Bh3 {[%emt 0:00:18] [#]} f5 {[%emt 0:00:37]} (35... e3 $1 $17 {Hoping for ...e2.} 36. Bxd7 (36. Qxd7 $2 Qxd7 37. Bxd7 e2 $19) 36... b3) 36. Bf1 $11 {[%emt 0:00:22] And now Bb5 would win. The position is equal.} d4 {[%emt 0:14:50] Threatens to win with ...d3.} 37. Bc4 {[%emt 0:02:20]} d3 {[%emt 0:00:22]} 38. Qg8+ {[%emt 0:01:00]} Kf6 {[%emt 0:00:03]} 39. cxd3 {[%emt 0:01:09]} exd3 {[%emt 0:00:06]} 40. Qd8+ {[%emt 0:00:28]} Ke5 {[%emt 0:03:32]} 41. Bxd3 {[%emt 0:01:03]} Qxd3 {[%emt 0:08:59]} 42. Qe7+ {[%emt 0:00:10]} Kd5 {[%emt 0:00:07]} 43. Qxd7+ {[%emt 0:00:05] KQ-KQ} Kc4 {[%emt 0:00:14]} 44. Qe6+ {[%emt 0:00:51]} Kc5 {[%emt 0:04:10]} 45. Qxg6 {[%emt 0:02:23]} Qd1+ {[%emt 0:01:46]} 46. Kg2 {[%emt 0:01:50]} Qd5+ {[%emt 0:00:05]} 47. Kg1 {[%emt 0:00:39]} Qd1+ {[%emt 0:00:08]} 48. Kg2 {[%emt 0:00:22]} Qd5+ {[%emt 0:00:08]} 49. Kg1 {[%emt 0:01:08] Weighted Error Value: White=0.08 (flawless) /Black=0.08 (flawless)} 1/2-1/2